[Event "Late-Titled-Tuesday-Blitz-May-07-2024"]
[Site "Chess.com"]
[Date "2024.05.07"]
[Round "5"]
[White "Lennis93"]
[Black "BilodeauA"]
[Result "1-0"]
[WhiteElo "2734"]
[BlackElo "2889"]
[TimeControl "180+1"]
[EndTime "14:57:13 PDT"]
[Termination "Lennis93 won by resignation"]

1. Nf3 {[%clk 0:03:00.9]} 1... d5 {[%clk 0:02:53.6]} 2. b3 {[%clk 0:03:00]} 2...
f6 {[%clk 0:02:52.5]} 3. d4 {[%clk 0:02:59]} 3... c6 {[%clk 0:02:46.1]} 4. Bf4
{[%clk 0:02:48.4]} 4... g5 {[%clk 0:02:44]} 5. Bg3 {[%clk 0:02:48]} 5... h5
{[%clk 0:02:43.2]} 6. h4 {[%clk 0:02:47.1]} 6... g4 {[%clk 0:02:42.7]} 7. Nfd2
{[%clk 0:02:47.1]} 7... Nh6 {[%clk 0:02:37.3]} 8. e4 {[%clk 0:02:43.6]} 8...
dxe4 {[%clk 0:02:36.3]} 9. Nxe4 {[%clk 0:02:43.8]} 9... Nf5 {[%clk 0:02:35.9]}
10. c3 {[%clk 0:02:43]} 10... Bh6 {[%clk 0:02:30.5]} 11. Bd3 {[%clk 0:02:31]}
11... O-O {[%clk 0:02:29.2]} 12. O-O {[%clk 0:02:29.4]} 12... Na6 {[%clk
0:02:28.1]} 13. Na3 {[%clk 0:02:19.3]} 13... Nc7 {[%clk 0:02:27.6]} 14. Re1
{[%clk 0:02:15.3]} 14... Ne6 {[%clk 0:02:16.2]} 15. Qc2 {[%clk 0:02:06.1]} 15...
Nfg7 {[%clk 0:02:06.2]} 16. Nd2 {[%clk 0:01:46.5]} 16... Nf4 {[%clk 0:01:58.6]}
17. Bxf4 {[%clk 0:01:41.6]} 17... Bxf4 {[%clk 0:01:59.5]} 18. g3 {[%clk
0:01:41.7]} 18... Bh6 {[%clk 0:01:59.1]} 19. Rad1 {[%clk 0:01:40.7]} 19... b5
{[%clk 0:01:56.2]} 20. Be4 {[%clk 0:01:11.6]} 20... Rb8 {[%clk 0:01:53.6]} 21.
Bxc6 {[%clk 0:01:09.6]} 21... Qd6 {[%clk 0:01:53.5]} 22. Bxb5 {[%clk 0:00:56.4]}
22... Qxa3 {[%clk 0:01:49.9]} 23. Nc4 {[%clk 0:00:51.2]} 23... Bf5 {[%clk
0:01:37.1]} 24. Qe2 {[%clk 0:00:40.6]} 24... Rxb5 {[%clk 0:01:29.4]} 25. Nxa3
{[%clk 0:00:40.7]} 25... Rb7 {[%clk 0:01:30.2]} 26. Nc4 {[%clk 0:00:40.5]} 26...
Rc8 {[%clk 0:01:28.5]} 27. Ne3 {[%clk 0:00:33.9]} 27... Be6 {[%clk 0:01:21.3]}
28. c4 {[%clk 0:00:33.9]} 28... a5 {[%clk 0:01:14.1]} 29. d5 {[%clk 0:00:34.2]}
29... Bf7 {[%clk 0:01:14.7]} 30. Nc2 {[%clk 0:00:34.3]} 30... a4 {[%clk
0:01:12.4]} 31. Nd4 {[%clk 0:00:34.6]} 31... axb3 {[%clk 0:01:11.4]} 32. axb3
{[%clk 0:00:35.5]} 32... Bg6 {[%clk 0:00:55.8]} 33. Ra1 {[%clk 0:00:31.8]} 33...
Kh7 {[%clk 0:00:50.6]} 34. Ra6 {[%clk 0:00:30.8]} 34... Rcb8 {[%clk 0:00:47.9]}
35. Qb2 {[%clk 0:00:18.9]} 35... Nf5 {[%clk 0:00:47.5]} 36. Nxf5 {[%clk
0:00:17.5]} 36... Bxf5 {[%clk 0:00:48.4]} 37. Ra3 {[%clk 0:00:07.6]} 37... Kg6
{[%clk 0:00:46.6]} 38. Re2 {[%clk 0:00:07.6]} 38... Kf7 {[%clk 0:00:41.9]} 39.
Kg2 {[%clk 0:00:07]} 39... Bd3 {[%clk 0:00:41.7]} 40. Re1 {[%clk 0:00:06.6]}
40... Bxc4 {[%clk 0:00:42.2]} 41. Qd4 {[%clk 0:00:06.1]} 41... Bxb3 {[%clk
0:00:41.2]} 42. Qe4 {[%clk 0:00:05.7]} 42... Kf8 {[%clk 0:00:12.2]} 43. Rxb3
{[%clk 0:00:04.3]} 43... Rxb3 {[%clk 0:00:13.1]} 44. Qxe7+ {[%clk 0:00:04.6]}
44... Kg8 {[%clk 0:00:14]} 45. Qxf6 {[%clk 0:00:05]} 45... Bg7 {[%clk
0:00:14.4]} 46. Qe6+ {[%clk 0:00:04.6]} 46... Kh8 {[%clk 0:00:14.1]} 47. Qf5
{[%clk 0:00:05.2]} 47... Rf8 {[%clk 0:00:09.2]} 48. Qxh5+ {[%clk 0:00:05.7]}
48... Kg8 {[%clk 0:00:09.9]} 49. Qxg4 {[%clk 0:00:06.3]} 49... Rb2 {[%clk
0:00:10.6]} 50. Rf1 {[%clk 0:00:06.5]} 50... Rd2 {[%clk 0:00:09.1]} 51. Qe6+
{[%clk 0:00:07.1]} 51... Kh7 {[%clk 0:00:09]} 52. Qe4+ {[%clk 0:00:06.2]} 52...
Kg8 {[%clk 0:00:08.5]} 53. h5 {[%clk 0:00:06.6]} 53... Rf6 {[%clk 0:00:08.5]}
54. Qe8+ {[%clk 0:00:05.9]} 54... Kh7 {[%clk 0:00:09.1]} 55. g4 {[%clk
0:00:04.5]} 55... Rd4 {[%clk 0:00:08.3]} 56. f3 {[%clk 0:00:04.7]} 56... Rb6
{[%clk 0:00:06.7]} 57. Kg3 {[%clk 0:00:04.5]} 57... Rbb4 {[%clk 0:00:04.1]} 58.
Re1 {[%clk 0:00:04.7]} 58... Rxd5 {[%clk 0:00:04.5]} 59. Re7 {[%clk 0:00:03.8]}
59... Rg5 {[%clk 0:00:03.3]} 60. Qf7 {[%clk 0:00:03.5]} 60... Kh6 {[%clk
0:00:03.3]} 61. Qe6+ {[%clk 0:00:03.7]} 61... Kh7 {[%clk 0:00:03.8]} 62. Rxg7+
{[%clk 0:00:03.9]} 62... Rxg7 {[%clk 0:00:03.4]} 63. Qf5+ {[%clk 0:00:04.5]}
63... Kh8 {[%clk 0:00:04]} 64. h6 {[%clk 0:00:05.1]} 64... Rgb7 {[%clk
0:00:03.1]} 65. Qf6+ {[%clk 0:00:05.3]} 65... Kh7 {[%clk 0:00:03.5]} 66. g5
{[%clk 0:00:05.9]} 66... R4b6 {[%clk 0:00:03.9]} 67. Qf5+ {[%clk 0:00:06.2]}
67... Rg6 {[%clk 0:00:03.5]} 68. Kg4 {[%clk 0:00:06.8]} 68... Rb4+ {[%clk
0:00:02.9]} 69. Kh5 {[%clk 0:00:06.8]} 69... Rb7 {[%clk 0:00:03.8]} 70. Qxg6+
{[%clk 0:00:06.7]} 70... Kh8 {[%clk 0:00:04.4]} 71. Qf6+ {[%clk 0:00:07.3]}
71... Kh7 {[%clk 0:00:04.1]} 72. Qf5+ {[%clk 0:00:07.8]} 72... Kg8 {[%clk
0:00:04.4]} 73. Qd5+ {[%clk 0:00:07.3]} 73... Kh8 {[%clk 0:00:04.1]} 74. Qxb7
{[%clk 0:00:07.1]} 1-0

[Event "Late-Titled-Tuesday-Blitz-May-07-2024"]
[Site "Chess.com"]
[Date "2024.05.07"]
[Round "5"]
[White "NajdorfPlayerc5"]
[Black "lilylg"]
[Result "1-0"]
[WhiteElo "2432"]
[BlackElo "2239"]
[TimeControl "180+1"]
[EndTime "14:57:25 PDT"]
[Termination "NajdorfPlayerc5 won on time"]

1. d4 {[%clk 0:03:00.9]} 1... d5 {[%clk 0:02:52.5]} 2. c4 {[%clk 0:02:55.9]}
2... e6 {[%clk 0:02:24.2]} 3. Nc3 {[%clk 0:02:48.9]} 3... c6 {[%clk 0:02:18.6]}
4. e4 {[%clk 0:02:47.3]} 4... dxe4 {[%clk 0:02:10.6]} 5. Nxe4 {[%clk 0:02:48.2]}
5... Bb4+ {[%clk 0:02:10.6]} 6. Nc3 {[%clk 0:02:37.8]} 6... Nf6 {[%clk
0:02:09.6]} 7. Nf3 {[%clk 0:02:37.1]} 7... O-O {[%clk 0:02:09.6]} 8. Bd3 {[%clk
0:02:30.2]} 8... c5 {[%clk 0:02:06.3]} 9. a3 {[%clk 0:02:19.6]} 9... cxd4 {[%clk
0:02:02.5]} 10. axb4 {[%clk 0:02:19.1]} 10... dxc3 {[%clk 0:02:02.8]} 11. bxc3
{[%clk 0:02:19.2]} 11... e5 {[%clk 0:02:01.4]} 12. Nxe5 {[%clk 0:01:49]} 12...
Re8 {[%clk 0:02:01.3]} 13. f4 {[%clk 0:01:48.1]} 13... Bg4 {[%clk 0:01:58.8]}
14. Be2 {[%clk 0:01:29.9]} 14... Qxd1+ {[%clk 0:01:06.3]} 15. Bxd1 {[%clk
0:01:01.3]} 15... Nc6 {[%clk 0:01:05.5]} 16. O-O {[%clk 0:00:43.8]} 16... Nxe5
{[%clk 0:00:56.1]} 17. fxe5 {[%clk 0:00:44.7]} 17... Rxe5 {[%clk 0:00:54.6]} 18.
Bf4 {[%clk 0:00:36.5]} 18... Re6 {[%clk 0:00:48.1]} 19. Bb3 {[%clk 0:00:24]}
19... Be2 {[%clk 0:00:47.6]} 20. Rfe1 {[%clk 0:00:22.3]} 20... Rae8 {[%clk
0:00:47.4]} 21. c5 {[%clk 0:00:21.2]} 21... Re4 {[%clk 0:00:47.5]} 22. Bg3
{[%clk 0:00:18.4]} 22... Bg4 {[%clk 0:00:28.7]} 23. Rxe4 {[%clk 0:00:16.6]}
23... Nxe4 {[%clk 0:00:29.6]} 24. Be1 {[%clk 0:00:16.6]} 24... a6 {[%clk
0:00:26.3]} 25. c6 {[%clk 0:00:14]} 25... bxc6 {[%clk 0:00:26.1]} 26. Rxa6
{[%clk 0:00:10.2]} 26... h6 {[%clk 0:00:12.6]} 27. h3 {[%clk 0:00:08.1]} 27...
Bd7 {[%clk 0:00:12.2]} 28. Ra7 {[%clk 0:00:07.6]} 28... Nf6 {[%clk 0:00:10.4]}
29. Bh4 {[%clk 0:00:05.3]} 29... Be6 {[%clk 0:00:09.5]} 30. Bxf6 {[%clk
0:00:03.9]} 30... Bxb3 {[%clk 0:00:09.6]} 31. Bd4 {[%clk 0:00:03.2]} 31... Re1+
{[%clk 0:00:09.5]} 32. Kh2 {[%clk 0:00:03.7]} 32... Re2 {[%clk 0:00:09.5]} 33.
Ra8+ {[%clk 0:00:04.1]} 33... Kh7 {[%clk 0:00:09.3]} 34. Kg1 {[%clk 0:00:02.5]}
34... Bd5 {[%clk 0:00:09.7]} 35. g4 {[%clk 0:00:01.6]} 35... Rg2+ {[%clk
0:00:09.7]} 36. Kf1 {[%clk 0:00:02.1]} 36... Rg3 {[%clk 0:00:09.7]} 37. Rd8
{[%clk 0:00:01.9]} 37... Rxh3 {[%clk 0:00:09.4]} 38. Rd7 {[%clk 0:00:01.6]}
38... Rf3+ {[%clk 0:00:08.8]} 39. Ke2 {[%clk 0:00:01.6]} 39... Rf4 {[%clk
0:00:07.7]} 40. b5 {[%clk 0:00:02.1]} 40... Rxg4 {[%clk 0:00:06.9]} 41. b6
{[%clk 0:00:02.3]} 41... Re4+ {[%clk 0:00:05.6]} 42. Kd3 {[%clk 0:00:02.2]}
42... Re8 {[%clk 0:00:06.1]} 43. b7 {[%clk 0:00:02.3]} 43... c5 {[%clk
0:00:06.2]} 44. Bxc5 {[%clk 0:00:01.9]} 44... Bc6 {[%clk 0:00:05.9]} 45. Rc7
{[%clk 0:00:02.2]} 45... Be4+ {[%clk 0:00:06.3]} 46. Kc4 {[%clk 0:00:01.6]}
46... Kg6 {[%clk 0:00:06.4]} 47. Ba7 {[%clk 0:00:01.6]} 47... Bxb7 {[%clk
0:00:05]} 48. Rxb7 {[%clk 0:00:02.5]} 48... Rc8+ {[%clk 0:00:04.7]} 49. Kd3
{[%clk 0:00:02.1]} 49... f5 {[%clk 0:00:05.1]} 50. Bd4 {[%clk 0:00:02.6]} 50...
Rd8 {[%clk 0:00:05.2]} 51. Rxg7+ {[%clk 0:00:02.6]} 51... Kh5 {[%clk 0:00:05.1]}
52. Rg2 {[%clk 0:00:03.2]} 52... f4 {[%clk 0:00:05]} 53. c4 {[%clk 0:00:03.7]}
53... f3 {[%clk 0:00:05.1]} 54. Rf2 {[%clk 0:00:04.1]} 54... Kg4 {[%clk
0:00:05.6]} 55. Rf1 {[%clk 0:00:02.8]} 55... Kg3 {[%clk 0:00:05.7]} 56. c5
{[%clk 0:00:02.8]} 56... Kg2 {[%clk 0:00:04.8]} 57. Rg1+ {[%clk 0:00:02.7]}
57... Kh2 {[%clk 0:00:05.2]} 58. Rg6 {[%clk 0:00:02]} 58... f2 {[%clk
0:00:04.1]} 59. Rf6 {[%clk 0:00:02.2]} 59... Kg2 {[%clk 0:00:03.5]} 60. Rxf2+
{[%clk 0:00:01.9]} 60... Kg3 {[%clk 0:00:03.3]} 61. Rf6 {[%clk 0:00:02.2]} 61...
h5 {[%clk 0:00:03.1]} 62. c6 {[%clk 0:00:02.6]} 62... h4 {[%clk 0:00:02.6]} 63.
c7 {[%clk 0:00:03]} 63... Rc8 {[%clk 0:00:02.9]} 64. Bb6 {[%clk 0:00:03.3]}
64... Kg2 {[%clk 0:00:02.6]} 65. Rd6 {[%clk 0:00:03.2]} 65... h3 {[%clk
0:00:03]} 66. Rd8 {[%clk 0:00:03.4]} 66... h2 {[%clk 0:00:02.1]} 67. Rxc8 {[%clk
0:00:01.7]} 67... h1=Q {[%clk 0:00:02.6]} 68. Rg8+ {[%clk 0:00:02]} 68... Kf3
{[%clk 0:00:02.9]} 69. c8=Q {[%clk 0:00:02.1]} 69... Qd1+ {[%clk 0:00:03.1]} 70.
Kc4 {[%clk 0:00:02]} 70... Qc2+ {[%clk 0:00:03.6]} 71. Kb5 {[%clk 0:00:02.6]}
71... Qb3+ {[%clk 0:00:03.2]} 72. Ka6 {[%clk 0:00:03.5]} 72... Qa4+ {[%clk
0:00:03.4]} 73. Kb7 {[%clk 0:00:04.4]} 73... Qe4+ {[%clk 0:00:02.6]} 74. Qc6
{[%clk 0:00:04.6]} 1-0

[Event "Late-Titled-Tuesday-Blitz-May-07-2024"]
[Site "Chess.com"]
[Date "2024.05.07"]
[Round "5"]
[White "1800_strength"]
[Black "ACollins05"]
[Result "1/2-1/2"]
[WhiteElo "2778"]
[BlackElo "2536"]
[TimeControl "180+1"]
[EndTime "14:57:30 PDT"]
[Termination "Game drawn - insufficient material"]

1. a4 {[%clk 0:03:00.9]} 1... d5 {[%clk 0:02:56.3]} 2. Ra3 {[%clk 0:03:01.8]}
2... e5 {[%clk 0:02:54.7]} 3. b3 {[%clk 0:03:00.8]} 3... Bxa3 {[%clk 0:02:53]}
4. Nxa3 {[%clk 0:03:01.7]} 4... Nf6 {[%clk 0:02:52.7]} 5. Bb2 {[%clk 0:03:02.2]}
5... Nc6 {[%clk 0:02:50.9]} 6. g3 {[%clk 0:03:02.6]} 6... O-O {[%clk 0:02:50.7]}
7. Bg2 {[%clk 0:03:03]} 7... Re8 {[%clk 0:02:48.6]} 8. e3 {[%clk 0:03:03.4]}
8... d4 {[%clk 0:02:48.6]} 9. Ne2 {[%clk 0:03:03.1]} 9... Be6 {[%clk 0:02:48]}
10. O-O {[%clk 0:03:02.8]} 10... Bd5 {[%clk 0:02:48.3]} 11. Bh3 {[%clk
0:02:45.5]} 11... Be6 {[%clk 0:02:44.3]} 12. Bg2 {[%clk 0:02:44.9]} 12... a6
{[%clk 0:02:42.1]} 13. d3 {[%clk 0:02:40.7]} 13... dxe3 {[%clk 0:02:39.6]} 14.
fxe3 {[%clk 0:02:41.1]} 14... Nd5 {[%clk 0:02:38.1]} 15. Qd2 {[%clk 0:02:31.1]}
15... f6 {[%clk 0:02:36.5]} 16. h3 {[%clk 0:02:29.4]} 16... Qd7 {[%clk
0:02:34.2]} 17. Kh2 {[%clk 0:02:29.6]} 17... Rad8 {[%clk 0:02:33.3]} 18. g4
{[%clk 0:02:28.8]} 18... Qe7 {[%clk 0:02:22.5]} 19. Ng3 {[%clk 0:02:26.1]} 19...
Qc5 {[%clk 0:02:19.9]} 20. Re1 {[%clk 0:02:06.6]} 20... Ncb4 {[%clk 0:02:15.3]}
21. Ne4 {[%clk 0:02:05.8]} 21... Qe7 {[%clk 0:02:13.4]} 22. Qf2 {[%clk
0:02:05.3]} 22... Nc6 {[%clk 0:02:08]} 23. Re2 {[%clk 0:02:04.6]} 23... Rf8
{[%clk 0:01:59]} 24. Ng3 {[%clk 0:02:00.3]} 24... Nc3 {[%clk 0:01:49.8]} 25. Re1
{[%clk 0:01:53.9]} 25... Nd5 {[%clk 0:01:43.3]} 26. Nc4 {[%clk 0:01:52]} 26...
b5 {[%clk 0:01:39.9]} 27. axb5 {[%clk 0:01:52.9]} 27... axb5 {[%clk 0:01:40.4]}
28. Nd2 {[%clk 0:01:52.7]} 28... Ra8 {[%clk 0:01:35.5]} 29. Nf5 {[%clk 0:01:52]}
29... Qd7 {[%clk 0:01:34.1]} 30. Ng3 {[%clk 0:01:39.3]} 30... Ra2 {[%clk
0:01:33.6]} 31. Rb1 {[%clk 0:01:39.7]} 31... b4 {[%clk 0:01:22.4]} 32. Nde4
{[%clk 0:01:40]} 32... Qe7 {[%clk 0:01:13.5]} 33. Nf5 {[%clk 0:01:10.1]} 33...
Qf7 {[%clk 0:01:13.4]} 34. Nc5 {[%clk 0:01:02.5]} 34... Nce7 {[%clk 0:01:08.9]}
35. Ng3 {[%clk 0:00:48.4]} 35... Nc3 {[%clk 0:01:01.4]} 36. Bxc3 {[%clk
0:00:46.1]} 36... bxc3 {[%clk 0:01:02.3]} 37. Nce4 {[%clk 0:00:40.8]} 37... Bd5
{[%clk 0:00:57]} 38. Nxc3 {[%clk 0:00:38.2]} 38... Ra6 {[%clk 0:00:51.2]} 39.
Nxd5 {[%clk 0:00:36.1]} 39... Nxd5 {[%clk 0:00:52.1]} 40. Nf5 {[%clk 0:00:30]}
40... Rd8 {[%clk 0:00:47.2]} 41. Rf1 {[%clk 0:00:28]} 41... Ne7 {[%clk
0:00:44.1]} 42. Ng3 {[%clk 0:00:27.7]} 42... Ra2 {[%clk 0:00:40.4]} 43. Be4
{[%clk 0:00:27.4]} 43... Qe6 {[%clk 0:00:36.2]} 44. Qg2 {[%clk 0:00:27.7]} 44...
Nd5 {[%clk 0:00:28.8]} 45. Qe2 {[%clk 0:00:23.5]} 45... Nb4 {[%clk 0:00:22.1]}
46. d4 {[%clk 0:00:20]} 46... exd4 {[%clk 0:00:21.5]} 47. exd4 {[%clk
0:00:20.9]} 47... Qb6 {[%clk 0:00:18]} 48. Qc4+ {[%clk 0:00:17.1]} 48... Kh8
{[%clk 0:00:16.9]} 49. Rd1 {[%clk 0:00:15.4]} 49... c6 {[%clk 0:00:11.1]} 50.
Nf5 {[%clk 0:00:15.2]} 50... Nd5 {[%clk 0:00:11]} 51. Re1 {[%clk 0:00:13.5]}
51... Qc7+ {[%clk 0:00:09.7]} 52. Kg2 {[%clk 0:00:14]} 52... Nf4+ {[%clk
0:00:09.3]} 53. Kh1 {[%clk 0:00:06.4]} 53... Re8 {[%clk 0:00:09.6]} 54. Qf1
{[%clk 0:00:05.1]} 54... Ng6 {[%clk 0:00:06.7]} 55. Kg2 {[%clk 0:00:04.4]} 55...
Qf4 {[%clk 0:00:06.4]} 56. Qxf4 {[%clk 0:00:04.2]} 56... Nxf4+ {[%clk
0:00:07.3]} 57. Kf3 {[%clk 0:00:05.1]} 57... Nxh3 {[%clk 0:00:07]} 58. Nd6
{[%clk 0:00:03.6]} 58... Ng5+ {[%clk 0:00:06.9]} 59. Kf4 {[%clk 0:00:04.1]}
59... Rd8 {[%clk 0:00:05.8]} 60. Nc4 {[%clk 0:00:03.9]} 60... Nxe4 {[%clk
0:00:04.9]} 61. Rxe4 {[%clk 0:00:03.9]} 61... Rxc2 {[%clk 0:00:05.5]} 62. Re7
{[%clk 0:00:03.7]} 62... Rxd4+ {[%clk 0:00:03.6]} 63. Ke3 {[%clk 0:00:04.3]}
63... Rd8 {[%clk 0:00:04.5]} 64. Nd6 {[%clk 0:00:04.8]} 64... Rc3+ {[%clk
0:00:04.3]} 65. Ke2 {[%clk 0:00:04.9]} 65... Rf8 {[%clk 0:00:04.5]} 66. Nf5
{[%clk 0:00:05.1]} 66... Rxb3 {[%clk 0:00:02.9]} 67. Rxg7 {[%clk 0:00:04.9]}
67... Rb4 {[%clk 0:00:03.1]} 68. Rc7 {[%clk 0:00:05.5]} 68... Rxg4 {[%clk
0:00:03.2]} 69. Kf3 {[%clk 0:00:06.1]} 69... Rg5 {[%clk 0:00:03.6]} 70. Kf4
{[%clk 0:00:06.8]} 70... Rg6 {[%clk 0:00:03.2]} 71. Nd6 {[%clk 0:00:06.9]} 71...
Kg8 {[%clk 0:00:02.6]} 72. Nf5 {[%clk 0:00:06.7]} 72... Rg7 {[%clk 0:00:03.5]}
73. Rxg7+ {[%clk 0:00:06.4]} 73... Kh8 {[%clk 0:00:04.4]} 74. Rc7 {[%clk
0:00:07.1]} 74... Rg8 {[%clk 0:00:04.8]} 75. Nh6 {[%clk 0:00:07.4]} 75... Rf8
{[%clk 0:00:05]} 76. Kf5 {[%clk 0:00:07.6]} 76... c5 {[%clk 0:00:04.6]} 77. Rxc5
{[%clk 0:00:08]} 77... Kg7 {[%clk 0:00:04.6]} 78. Ng4 {[%clk 0:00:07.9]} 78...
h5 {[%clk 0:00:03.8]} 79. Rc7+ {[%clk 0:00:07.5]} 79... Rf7 {[%clk 0:00:04.2]}
80. Rxf7+ {[%clk 0:00:03.1]} 80... Kxf7 {[%clk 0:00:05.1]} 81. Nxf6 {[%clk
0:00:03.8]} 81... h4 {[%clk 0:00:05.2]} 82. Ng4 {[%clk 0:00:04.6]} 82... h3
{[%clk 0:00:06.1]} 83. Nh2 {[%clk 0:00:05.5]} 83... Kg7 {[%clk 0:00:05.6]} 84.
Kg4 {[%clk 0:00:06.4]} 84... Kh6 {[%clk 0:00:06.5]} 85. Kxh3 {[%clk 0:00:07.3]}
1/2-1/2

[Event "Late-Titled-Tuesday-Blitz-May-07-2024"]
[Site "Chess.com"]
[Date "2024.05.07"]
[Round "5"]
[White "Smiechu"]
[Black "secretworker2027"]
[Result "1/2-1/2"]
[WhiteElo "2448"]
[BlackElo "2657"]
[TimeControl "180+1"]
[EndTime "14:57:35 PDT"]
[Termination "Game drawn by repetition"]

1. e4 {[%clk 0:02:30.9]} 1... c5 {[%clk 0:02:59.3]} 2. Nf3 {[%clk 0:02:29.8]}
2... Nc6 {[%clk 0:02:53.2]} 3. d4 {[%clk 0:02:29.8]} 3... cxd4 {[%clk
0:02:53.5]} 4. Nxd4 {[%clk 0:02:30.7]} 4... e5 {[%clk 0:02:53.9]} 5. Nb5 {[%clk
0:02:30.2]} 5... d6 {[%clk 0:02:54.1]} 6. N1c3 {[%clk 0:02:29.8]} 6... a6 {[%clk
0:02:54.4]} 7. Na3 {[%clk 0:02:29.9]} 7... b5 {[%clk 0:02:54.6]} 8. Nd5 {[%clk
0:02:30.1]} 8... Nge7 {[%clk 0:02:54.6]} 9. c4 {[%clk 0:02:28.7]} 9... Nd4
{[%clk 0:02:54.9]} 10. Nc2 {[%clk 0:02:27.7]} 10... Nxd5 {[%clk 0:02:55.2]} 11.
cxd5 {[%clk 0:02:26.1]} 11... Bg4 {[%clk 0:02:54.9]} 12. Qd3 {[%clk 0:02:14.8]}
12... Nxc2+ {[%clk 0:02:53]} 13. Qxc2 {[%clk 0:02:14.4]} 13... Rc8 {[%clk
0:02:53.6]} 14. Qd3 {[%clk 0:02:12]} 14... Be7 {[%clk 0:02:53.6]} 15. Be2 {[%clk
0:02:10.7]} 15... Bd7 {[%clk 0:02:48.5]} 16. O-O {[%clk 0:02:09.4]} 16... O-O
{[%clk 0:02:48.5]} 17. Be3 {[%clk 0:02:06]} 17... f5 {[%clk 0:02:47.9]} 18. f3
{[%clk 0:02:05.4]} 18... fxe4 {[%clk 0:02:47.9]} 19. fxe4 {[%clk 0:02:05.1]}
19... Qa5 {[%clk 0:02:37.1]} 20. Bd2 {[%clk 0:01:58.8]} 20... Qa4 {[%clk
0:02:23.6]} 21. b3 {[%clk 0:01:51.4]} 21... Rxf1+ {[%clk 0:02:12.9]} 22. Bxf1
{[%clk 0:01:48.1]} 22... Qa3 {[%clk 0:02:04.3]} 23. Qe3 {[%clk 0:01:29.3]} 23...
Qb2 {[%clk 0:01:58]} 24. Rc1 {[%clk 0:01:21.7]} 24... Rxc1 {[%clk 0:01:17.8]}
25. Bxc1 {[%clk 0:01:21.5]} 25... Qc2 {[%clk 0:01:18.3]} 26. h3 {[%clk
0:00:58.6]} 26... h6 {[%clk 0:01:13.4]} 27. Qa7 {[%clk 0:00:55.7]} 27... Qxc1
{[%clk 0:01:12.8]} 28. Qxd7 {[%clk 0:00:55.6]} 28... Bg5 {[%clk 0:01:06.8]} 29.
Qe6+ {[%clk 0:00:47]} 29... Kh8 {[%clk 0:01:03.6]} 30. Qf5 {[%clk 0:00:44.4]}
30... Be3+ {[%clk 0:01:03.6]} 31. Kh1 {[%clk 0:00:43]} 31... Bf4 {[%clk
0:01:03.8]} 32. Qf8+ {[%clk 0:00:41.6]} 32... Kh7 {[%clk 0:01:04]} 33. Qf5+
{[%clk 0:00:41.7]} 33... Kg8 {[%clk 0:01:03.8]} 34. Kg1 {[%clk 0:00:31.9]} 34...
Qe3+ {[%clk 0:01:03.5]} 35. Kh1 {[%clk 0:00:31.1]} 35... Qg3 {[%clk 0:01:04.2]}
36. Qc8+ {[%clk 0:00:29.9]} 36... Kh7 {[%clk 0:01:01.9]} 37. Qf5+ {[%clk
0:00:29.7]} 37... Kh8 {[%clk 0:01:00.6]} 38. Qf8+ {[%clk 0:00:28.9]} 38... Kh7
{[%clk 0:00:59.6]} 39. Qf5+ {[%clk 0:00:29.5]} 39... Qg6 {[%clk 0:00:51.5]} 40.
g4 {[%clk 0:00:21.1]} 40... Qxf5 {[%clk 0:00:49.5]} 41. gxf5 {[%clk 0:00:21.3]}
41... h5 {[%clk 0:00:46]} 42. Kg2 {[%clk 0:00:19.8]} 42... Kh6 {[%clk
0:00:45.7]} 43. Kf3 {[%clk 0:00:19.3]} 43... Kg5 {[%clk 0:00:46.3]} 44. a4
{[%clk 0:00:18.3]} 44... bxa4 {[%clk 0:00:45.5]} 45. bxa4 {[%clk 0:00:18.6]}
45... a5 {[%clk 0:00:46.1]} 46. Be2 {[%clk 0:00:18.5]} 46... Bd2 {[%clk
0:00:43.9]} 47. Bf1 {[%clk 0:00:18.3]} 47... Bb4 {[%clk 0:00:43.8]} 48. Be2
{[%clk 0:00:18.3]} 48... Bc5 {[%clk 0:00:42.3]} 49. Bf1 {[%clk 0:00:18.3]} 49...
Kh4 {[%clk 0:00:41.3]} 50. Bg2 {[%clk 0:00:17.7]} 50... Bb4 {[%clk 0:00:40.7]}
51. Bf1 {[%clk 0:00:17.7]} 51... Kg5 {[%clk 0:00:37.8]} 52. Bg2 {[%clk
0:00:17.5]} 52... g6 {[%clk 0:00:35.3]} 53. fxg6 {[%clk 0:00:10.5]} 53... Kxg6
{[%clk 0:00:35.6]} 54. Bf1 {[%clk 0:00:10.1]} 54... Kg5 {[%clk 0:00:35.2]} 55.
Bg2 {[%clk 0:00:10]} 55... Be1 {[%clk 0:00:34.6]} 56. Bf1 {[%clk 0:00:10]} 56...
Kf6 {[%clk 0:00:34.2]} 57. Bg2 {[%clk 0:00:09.7]} 57... Ke7 {[%clk 0:00:33.1]}
58. Bf1 {[%clk 0:00:09.7]} 58... Kd7 {[%clk 0:00:33]} 59. Bb5+ {[%clk
0:00:09.5]} 59... Kc7 {[%clk 0:00:33.2]} 60. Be8 {[%clk 0:00:09.5]} 60... h4
{[%clk 0:00:32.9]} 61. Kg4 {[%clk 0:00:09.6]} 61... Kb6 {[%clk 0:00:33.4]} 62.
Kf5 {[%clk 0:00:09.8]} 62... Kc5 {[%clk 0:00:34]} 63. Bb5 {[%clk 0:00:08.5]}
63... Kd4 {[%clk 0:00:33.2]} 64. Bd7 {[%clk 0:00:07.3]} 64... Ke3 {[%clk
0:00:32.1]} 65. Bc8 {[%clk 0:00:03.5]} 65... Kf3 {[%clk 0:00:31.7]} 66. Bd7
{[%clk 0:00:03.9]} 66... Bb4 {[%clk 0:00:31.3]} 67. Bc8 {[%clk 0:00:03.1]} 67...
Bc5 {[%clk 0:00:32]} 68. Bd7 {[%clk 0:00:03.3]} 68... Be3 {[%clk 0:00:32]} 69.
Bc8 {[%clk 0:00:03.2]} 69... Kg3 {[%clk 0:00:32.4]} 70. Kg6 {[%clk 0:00:02.5]}
70... Kf4 {[%clk 0:00:32.9]} 71. Bf5 {[%clk 0:00:01.6]} 71... Bc5 {[%clk
0:00:33.8]} 72. Kh5 {[%clk 0:00:01.8]} 72... Bf2 {[%clk 0:00:34.1]} 73. Kg6
{[%clk 0:00:01.9]} 73... Bg3 {[%clk 0:00:35]} 74. Kh5 {[%clk 0:00:02.4]} 74...
Ke3 {[%clk 0:00:35.3]} 75. Kg6 {[%clk 0:00:03]} 75... Kd4 {[%clk 0:00:36]} 76.
Kh5 {[%clk 0:00:03.4]} 76... Kc5 {[%clk 0:00:36.3]} 77. Kg4 {[%clk 0:00:04.1]}
77... Kd4 {[%clk 0:00:35.6]} 78. Kh5 {[%clk 0:00:02.9]} 78... Kc4 {[%clk
0:00:35.6]} 79. Kg4 {[%clk 0:00:03.6]} 79... Kd3 {[%clk 0:00:35.6]} 80. Kh5
{[%clk 0:00:03.3]} 80... Kc3 {[%clk 0:00:36]} 81. Kg4 {[%clk 0:00:03.6]} 81...
Be1 {[%clk 0:00:36.6]} 82. Bd7 {[%clk 0:00:03.9]} 82... Kb4 {[%clk 0:00:35.9]}
83. Kf5 {[%clk 0:00:03.7]} 83... Kc4 {[%clk 0:00:35.2]} 84. Kg4 {[%clk
0:00:04.3]} 84... Kd3 {[%clk 0:00:34.8]} 85. Kf5 {[%clk 0:00:04.8]} 85... Ke3
{[%clk 0:00:35.2]} 86. Kg4 {[%clk 0:00:05.2]} 86... Bg3 {[%clk 0:00:34.6]} 87.
Bf5 {[%clk 0:00:05.7]} 87... Kf2 {[%clk 0:00:34.1]} 88. Bd7 {[%clk 0:00:05.5]}
88... Kg2 {[%clk 0:00:34.4]} 89. Kh5 {[%clk 0:00:05.7]} 89... Kf3 {[%clk
0:00:34.6]} 90. Bf5 {[%clk 0:00:04.8]} 90... Be1 {[%clk 0:00:34.9]} 91. Kg5
{[%clk 0:00:04.3]} 91... Ke3 {[%clk 0:00:35.8]} 92. Kh5 {[%clk 0:00:04.3]} 92...
Kd4 {[%clk 0:00:36.7]} 93. Kg5 {[%clk 0:00:04.7]} 93... Kd3 {[%clk 0:00:36.9]}
94. Kg4 {[%clk 0:00:04.9]} 94... Kc4 {[%clk 0:00:37.1]} 95. Bd7 {[%clk 0:00:05]}
95... Kd4 {[%clk 0:00:36.2]} 96. Bf5 {[%clk 0:00:05.2]} 96... Bg3 {[%clk
0:00:35.9]} 97. Kh5 {[%clk 0:00:05.1]} 1/2-1/2